bitfinex/quotes_BTCUSD_20251231
["timestamp","ask_amount","ask_price","bid_price","bid_amount"]
[1767187105247,0.48796657,88837.0,88831.0,0.00839005]
[1767187105549,0.47671,88837.0,88831.0,0.00839005]
[1767187105896,0.54424961,88837.0,88831.0,0.00839005]
[1767187106114,0.54425067,88836.0,88831.0,0.00839005]
[1767187106337,0.54425067,88836.0,88831.0,0.00784105]
[1767187106708,0.47671,88836.0,88831.0,0.00784105]
[1767187106929,0.47671,88836.0,88827.0,0.26037572]
[1767187108586,0.06753916,88838.0,88827.0,0.26037572]
[1767187108790,0.07881831,88839.0,88827.0,0.26037572]
[1767187108996,0.01125644,88838.0,88829.0,0.26037572]
[1767187109794,0.02253631,88839.0,88829.0,0.26037572]
[1767187111083,0.01128,88839.0,88829.0,0.26037572]
[1767187111883,0.02253631,88839.0,88829.0,0.26037572]
[1767187112298,0.01125644,88838.0,88829.0,0.26037572]
[1767187112659,0.01128,88839.0,88828.0,0.72040572]
[1767187113044,0.02253631,88839.0,88828.0,0.72040572]
[1767187114063,0.01128,88839.0,88828.0,0.72040572]
[1767187114515,0.02253631,88839.0,88828.0,0.72040572]
[1767187114718,0.05628232,88838.0,88828.0,0.72040572]
[1767187115133,0.01125644,88838.0,88828.0,0.72040572]
[1767187115488,0.02253631,88839.0,88838.0,0.000549]
[1767187115688,0.06756158,88839.0,88838.0,0.000549]
[1767187115993,0.07881789,88839.0,88829.0,0.46003]
[1767187116314,0.01128,88839.0,88829.0,0.46003]
[1767187117886,0.010731,88839.0,88829.0,0.46003]
[1767187118123,0.01128,88842.0,88829.0,0.46003]
[1767187118281,0.01128,88842.0,88832.0,0.26037572]
[1767187119105,0.07881425,88844.0,88832.0,0.72040572]
[1767187119301,0.07881425,88844.0,88834.0,0.26037572]
[1767187120160,0.02253568,88844.0,88834.0,0.26037572]
[1767187120304,0.01128,88844.0,88834.0,0.26037572]
[1767187120711,0.01125581,88843.0,88834.0,0.26037572]
[1767187120911,0.01125593,88842.0,88834.0,0.26045143]
[1767187121117,0.01125581,88843.0,88834.0,0.26045143]
[1767187122123,0.01125593,88842.0,88834.0,0.26045143]
[1767187122323,0.01125581,88843.0,88834.0,0.26045143]
[1767187122734,0.02253568,88844.0,88834.0,0.26045143]
[1767187123139,0.01128,88844.0,88834.0,0.26045143]
[1767187123436,0.01125581,88843.0,88834.0,0.26045143]
[1767187123588,0.0788142,88844.0,88834.0,0.26045143]
[1767187123790,0.01125581,88843.0,88834.0,0.26045143]
[1767187125185,0.0788142,88844.0,88834.0,0.26045143]
[1767187125186,0.02253568,88844.0,88834.0,0.26045143]
[1767187126516,0.07881426,88844.0,88834.0,0.26045143]
[1767187127341,0.01125593,88842.0,88834.0,0.26045143]
[1767187127562,0.01125581,88843.0,88834.0,7.571e-05]
[1767187128361,0.01125568,88844.0,88834.0,7.571e-05]
[1767187128562,0.01125581,88843.0,88834.0,7.571e-05]
[1767187128710,0.01125568,88844.0,88834.0,7.571e-05]
[1767187129058,0.0002,88845.0,88835.0,0.48267]
[1767187132065,0.0002,88845.0,88835.0,0.7432061]
[1767187136284,0.0002,88845.0,88835.0,0.2605361]
[1767187136483,0.06752828,88852.0,88835.0,0.2605361]
[1767187136484,0.05627061,88857.0,88836.0,0.48267]
[1767187136685,0.4938597,88858.0,88848.0,0.2605361]
[1767187136686,0.0003497,88858.0,88848.0,0.2605361]
[1767187136919,0.0003497,88858.0,88848.0,0.7432061]
[1767187137325,0.0003497,88858.0,88848.0,0.48267]
[1767187137602,0.0003497,88858.0,88849.0,0.48267]
[1767187142524,0.0564148,88867.0,88849.0,0.48267]
[1767187142525,0.0001497,88867.0,88849.0,0.48267]
[1767187142662,0.0001497,88867.0,88857.0,0.2605361]
[1767187142663,0.0114297,88867.0,88857.0,0.2605361]
[1767187142865,0.0001497,88867.0,88857.0,0.2605361]
[1767187145150,0.0001497,88867.0,88858.0,0.48267]
[1767187147753,0.06766642,88867.0,88858.0,0.482121]
[1767187147958,0.01140247,88867.0,88858.0,0.482121]
[1767187148193,0.06766644,88867.0,88858.0,0.482121]
[1767187148372,0.0001497,88867.0,88858.0,0.482121]
[1767187148528,0.01140247,88867.0,88858.0,0.482121]
[1767187148734,0.01125289,88866.0,88858.0,0.482121]
[1767187149031,0.06766653,88867.0,88858.0,0.482121]
[1767187149355,0.0001497,88867.0,88858.0,0.482121]
[1767187149664,0.01125289,88866.0,88858.0,0.482121]
[1767187150090,0.06766671,88867.0,88858.0,0.482121]
[1767187150251,0.0001497,88867.0,88858.0,0.482121]
[1767187153545,0.0001497,88867.0,88857.0,0.2605361]
[1767187153546,0.01128,88875.0,88857.0,0.2605361]
[1767187153547,0.0001497,88876.0,88867.0,0.000149]
[1767187153688,0.0001497,88876.0,88864.0,0.48267]
[1767187153894,0.01140133,88876.0,88864.0,0.48267]
[1767187154332,0.01125175,88875.0,88861.0,0.01128]
[1767187154744,0.0001036,88875.0,88861.0,0.01128]
[1767187156059,0.01135535,88875.0,88861.0,0.01128]
[1767187156355,0.0001036,88875.0,88861.0,0.01128]
[1767187156761,0.0001036,88875.0,88861.0,0.49395]
[1767187158499,0.01135535,88875.0,88861.0,0.49395]
[1767187159263,0.0001036,88875.0,88861.0,0.49395]
[1767187159866,0.01135535,88875.0,88861.0,0.49395]
[1767187160291,0.0001036,88875.0,88865.0,0.2605361]
[1767187162968,0.0001036,88875.0,88861.0,0.49395]
[1767187163330,0.0001036,88875.0,88866.0,0.48303]
[1767187170450,0.00841429,88880.0,88866.0,0.48303]
[1767187170901,0.00841429,88880.0,88870.0,0.2605361]
[1767187171067,0.00841429,88880.0,88866.0,0.48303]
[1767187171266,0.00841429,88880.0,88870.0,0.2605361]
[1767187171662,0.01123742,88882.0,88870.0,0.2605361]
[1767187172568,0.03,88881.0,88870.0,0.2605361]
[1767187173597,0.47460061,88884.0,88870.0,0.2718161]
[1767187173598,0.03,88880.0,88870.0,0.2718161]
[1767187173774,0.03,88880.0,88870.0,0.7548461]
[1767187174175,0.03,88880.0,88871.0,0.48303]
[1767187174822,0.01128,88886.0,88871.0,0.48303]
[1767187174823,0.03,88885.0,88871.0,0.48303]
[1767187175026,0.03,88885.0,88875.0,0.2605361]
[1767187176134,0.03,88885.0,88871.0,0.48303]
[1767187176277,0.03,88885.0,88875.0,0.2605361]
[1767187177657,0.03,88884.0,88875.0,0.2605361]
[1767187178632,0.03,88883.0,88875.0,0.2605361]
[1767187178812,0.02253023,88887.0,88871.0,0.48303]
[1767187178813,0.03,88880.0,88871.0,0.48303]
[1767187179916,0.03,88879.0,88871.0,0.48303]
[1767187180862,0.03,88878.0,88871.0,0.48303]
[1767187181341,0.06750219,88886.0,88872.0,0.03]
[1767187181546,0.01125036,88886.0,88872.0,0.03]
[1767187182135,0.07878157,88887.0,88872.0,0.03]
[1767187182327,0.01128,88887.0,88872.0,0.03]
[1767187182710,0.01164973,88891.0,88887.0,0.000549]
[1767187182711,0.0004,88891.0,88887.0,0.000549]
[1767187182933,0.0004,88891.0,88882.0,0.04128]
[1767187184318,0.0004,88891.0,88869.0,0.08087683]
[1767187184319,0.47459985,88890.0,88869.0,0.08087683]
[1767187184486,0.47459985,88890.0,88844.0,0.00467079]
[1767187184487,0.46335,88884.0,88870.0,0.2605361]
[1767187184863,0.46335,88884.0,88868.0,0.01128]
[1767187185063,0.05625448,88882.0,88870.0,0.2605361]
[1767187185303,0.53085497,88883.0,88870.0,0.2605361]
[1767187185518,0.01125036,88886.0,88868.0,0.01128]
[1767187185519,0.01124985,88890.0,88883.0,0.000549]
[1767187185690,0.01124985,88890.0,88871.0,0.48303]
[1767187185691,0.46335,88889.0,88880.0,0.2605361]
[1767187186002,0.47459998,88889.0,88880.0,0.2605361]
[1767187186614,0.01125011,88888.0,88880.0,0.2605361]
[1767187186843,0.01125023,88887.0,88880.0,0.2605361]
[1767187187248,0.01125011,88888.0,88880.0,0.2605361]
[1767187187437,0.53085001,88889.0,88880.0,0.2605361]
[1767187188039,0.46335,88889.0,88880.0,0.2605361]
[1767187189204,0.51960013,88889.0,88880.0,0.2605361]
[1767187189382,0.46335,88889.0,88880.0,0.2605361]
[1767187189746,0.0004,88891.0,88880.0,0.2605361]
[1767187190711,0.0004,88891.0,88881.0,0.26025576]
[1767187191116,0.01164973,88891.0,88881.0,0.26025576]
[1767187191454,0.06789848,88891.0,88881.0,0.26025576]
[1767187191654,0.0004,88891.0,88881.0,0.26025576]
[1767187193522,0.01164973,88891.0,88881.0,0.26025576]
[1767187194242,0.01164973,88891.0,88881.0,0.74998576]
[1767187194243,0.0004,88891.0,88881.0,0.74998576]
[1767187195440,0.00837321,88893.0,88881.0,0.74998576]
[1767187195674,0.06749625,88894.0,88881.0,0.74998576]
[1767187195844,0.01124947,88893.0,88881.0,0.74998576]
[1767187196006,0.06749627,88894.0,88881.0,0.74998576]
[1767187196215,0.01124947,88893.0,88881.0,0.74998576]
[1767187197348,0.06749627,88894.0,88881.0,0.74998576]
[1767187197917,0.0112496,88892.0,88881.0,0.74998576]
[1767187198117,0.06749693,88893.0,88881.0,0.74998576]
[1767187198548,0.0112496,88892.0,88881.0,0.74998576]
[1767187199336,0.06749693,88893.0,88881.0,0.74998576]
[1767187199519,0.01124947,88893.0,88881.0,0.74998576]
[1767187200017,0.06749688,88893.0,88881.0,0.74998576]
[1767187200355,0.01124947,88893.0,88881.0,0.74998576]
[1767187200654,0.01124935,88894.0,88881.0,0.74998576]
[1767187200818,0.01124985,88890.0,88884.0,0.26025576]
[1767187201024,0.06749893,88891.0,88881.0,0.48973]
[1767187201239,0.01124985,88890.0,88881.0,0.48973]
[1767187201445,0.06749893,88891.0,88881.0,0.48973]
[1767187201606,0.06749893,88891.0,88881.0,0.432149]
[1767187202052,0.01124985,88890.0,88881.0,0.432149]
[1767187202252,0.01124985,88890.0,88880.0,0.0001036]
[1767187202253,0.05625119,88887.0,88880.0,0.0001036]
[1767187202490,0.01124998,88889.0,88864.0,0.0001682]
[1767187202491,0.48087,88870.0,88864.0,0.08104503]
[1767187202794,0.0112515,88877.0,88864.0,0.0001682]
[1767187202795,0.06751109,88875.0,88864.0,0.0001682]
[1767187202916,0.48087,88875.0,88865.0,0.26025576]
[1767187203123,0.22522481,88880.0,88860.0,0.26045576]
[1767187203124,0.49212251,88869.0,88860.0,0.26045576]
[1767187203317,0.48548057,88880.0,88860.0,0.27184187]
[1767187203318,0.01125213,88872.0,88860.0,0.27184187]
[1767187203518,0.48087,88871.0,88860.0,0.27184187]
[1767187206166,0.48087,88871.0,88860.0,0.01158611]
[1767187206345,0.48087,88871.0,88860.0,0.27184187]
[1767187207794,0.01128,88875.0,88871.0,0.000444]
[1767187208210,0.05625626,88879.0,88871.0,0.000444]
[1767187208448,0.05625626,88879.0,88861.0,0.48973]
[1767187208449,0.01125125,88879.0,88869.0,0.26025576]
[1767187208680,0.49235,88880.0,88869.0,0.26025576]
[1767187208848,0.50360112,88880.0,88869.0,0.26025576]
[1767187209223,0.49235,88880.0,88869.0,0.26025576]
[1767187209491,0.48107,88880.0,88869.0,0.26025576]
[1767187210089,0.48107,88880.0,88867.0,0.01128]
[1767187210286,0.48107,88880.0,88870.0,0.26025576]
[1767187210668,0.0002,88880.0,88870.0,0.26025576]
[1767187212498,0.0002,88880.0,88870.0,0.74998576]
[1767187212655,0.0002,88880.0,88871.0,0.48973]
[1767187213475,0.49215,88891.0,88871.0,0.48973]
[1767187213701,0.01124935,88894.0,88867.0,0.01128]
[1767187213702,0.0112496,88892.0,88880.0,0.26025576]
[1767187213902,0.0112496,88892.0,88881.0,0.01128]
[1767187214108,0.01124973,88891.0,88881.0,0.01128]
[1767187214311,0.0112496,88892.0,88881.0,0.01128]
[1767187214716,0.01124973,88891.0,88881.0,0.01128]
[1767187215093,0.01124935,88894.0,88881.0,0.01128]
[1767187215321,0.01124947,88893.0,88881.0,0.01128]
[1767187216219,0.0112496,88892.0,88881.0,0.01128]
[1767187216418,0.06749703,88893.0,88881.0,0.01128]
[1767187217004,0.0112496,88892.0,88881.0,0.00828]
[1767187217621,0.06749703,88893.0,88881.0,0.00828]
[1767187217828,0.06749703,88893.0,88882.0,0.26025576]
[1767187218036,0.06749703,88893.0,88881.0,0.49801]
[1767187218663,0.01124947,88893.0,88881.0,0.49801]
[1767187218791,0.05664616,88895.0,88881.0,0.49801]
[1767187218792,0.0004,88895.0,88881.0,0.49801]
[1767187219003,0.0004,88895.0,88885.0,0.26025576]
[1767187220005,0.0004,88895.0,88881.0,0.49801]
[1767187220207,0.0004,88895.0,88885.0,0.26025576]
[1767187222976,0.0004,88895.0,88881.0,0.49801]
[1767187223363,0.0004,88895.0,88885.0,0.26025576]
[1767187229014,0.000305,88885.0,88881.0,0.49801]
[1767187229368,0.06789585,88895.0,88881.0,0.50517]
[1767187229571,0.06789585,88895.0,88888.0,0.000305]
[1767187229719,0.06789585,88895.0,88881.0,0.50517]
[1767187229915,0.01124935,88894.0,88881.0,0.50517]
[1767187230753,0.01124935,88894.0,88881.0,0.00828]
[1767187230954,0.48034,88893.0,88881.0,0.00828]
[1767187231155,0.01125023,88887.0,88867.0,0.49689]
[1767187231373,0.01125023,88887.0,88868.0,0.01128]
[1767187231374,0.49159023,88887.0,88868.0,0.01128]
[1767187231517,0.48034,88887.0,88877.0,0.26025576]
[1767187231722,0.48034,88887.0,88878.0,0.01128]
[1767187231723,0.43034,88887.0,88878.0,0.01128]
[1767187232979,0.0004,88895.0,88887.0,0.000549]
[1767187233272,0.0004,88895.0,88885.0,0.27153576]
[1767187233634,0.0004,88895.0,88885.0,0.76842576]
[1767187235609,0.0004,88895.0,88885.0,0.27153576]
[1767187235786,0.0004,88895.0,88886.0,0.49689]
[1767187239685,0.0004,88896.0,88886.0,0.49689]
[1767187244254,0.0004,88896.0,88886.0,0.75714576]
[1767187244460,0.0004,88896.0,88887.0,0.49689]
[1767187244962,0.0004,88906.0,88896.0,0.0004]
[1767187245119,0.00050615,88906.0,88896.0,0.52091152]
[1767187245322,0.00050615,88906.0,88896.0,0.26105576]
[1767187245559,0.00050615,88906.0,88896.0,0.26065576]
[1767187245912,0.06799328,88906.0,88896.0,0.26065576]
[1767187246112,0.06748796,88905.0,88896.0,0.26065576]
[1767187246374,0.01124808,88904.0,88896.0,0.26065576]
[1767187246563,0.01124808,88904.0,88896.0,0.0004]
[1767187247117,0.0674891,88904.0,88896.0,0.0004]
[1767187247537,0.01124821,88903.0,88894.0,0.27153576]
[1767187247743,0.01124808,88904.0,88894.0,0.27153576]
[1767187247976,0.06748907,88904.0,88894.0,0.27153576]
[1767187248148,0.01124821,88903.0,88894.0,0.27153576]
[1767187248510,0.01124808,88904.0,88894.0,0.27153576]
[1767187249043,0.01124834,88902.0,88894.0,0.27153576]
[1767187249386,0.01124821,88903.0,88894.0,0.01128]
[1767187249587,0.01124834,88902.0,88894.0,0.01128]
[1767187249891,0.06748944,88903.0,88894.0,0.01128]
[1767187250249,0.06749005,88902.0,88894.0,0.01128]
[1767187250476,0.01124808,88904.0,88894.0,0.01128]
[1767187250687,0.54782832,88905.0,88894.0,0.01128]
[1767187250886,0.48034,88905.0,88894.0,0.01128]
[1767187251117,0.48034,88905.0,88895.0,0.26025576]
[1767187251253,0.00050615,88906.0,88895.0,0.26025576]
[1767187251474,0.01175398,88906.0,88895.0,0.26025576]
[1767187251677,0.06799324,88906.0,88895.0,0.26025576]
[1767187252466,0.01175398,88906.0,88896.0,0.26015605]
[1767187252690,0.06799316,88906.0,88896.0,0.26015605]
[1767187253874,0.01124796,88905.0,88896.0,0.26015605]
[1767187254106,0.01175398,88906.0,88896.0,0.26015605]
[1767187255263,0.00050615,88906.0,88897.0,0.49911]
[1767187255971,0.0004,88911.0,88897.0,0.49911]
[1767187255972,0.0112472,88911.0,88897.0,0.49911]
[1767187256155,0.0112472,88911.0,88894.0,0.01128]
[1767187256156,0.00035377,88911.0,88900.0,0.75926605]
[1767187257767,0.00035377,88911.0,88901.0,0.51039]
[1767187258548,0.05623843,88908.0,88902.0,0.01128]
[1767187258764,0.47440097,88911.0,88891.0,0.49911]
[1767187258765,0.05623998,88905.0,88891.0,0.49911]
[1767187258956,0.06748929,88903.0,88892.0,0.01128]
[1767187259211,0.01124834,88902.0,88895.0,0.26015605]
[1767187259412,0.06748938,88903.0,88895.0,0.26015605]
[1767187259618,0.01124834,88902.0,88895.0,0.26015605]
[1767187259817,0.06748938,88903.0,88895.0,0.26015605]
[1767187259970,0.06748823,88905.0,88892.0,0.01128]
[1767187259971,0.01124872,88899.0,88892.0,0.01128]
[1767187260179,0.01124834,88902.0,88892.0,0.01128]
[1767187260180,0.06749177,88900.0,88892.0,0.01128]
[1767187260548,0.01124859,88900.0,88892.0,0.01128]
[1767187260767,0.0674918,88900.0,88892.0,0.01128]
[1767187261295,0.01124872,88899.0,88892.0,0.01128]
[1767187261525,0.0674918,88900.0,88892.0,0.01128]
[1767187261716,0.01124859,88900.0,88892.0,0.01128]
[1767187261916,0.01124872,88899.0,88892.0,0.01128]
[1767187262094,0.01124859,88900.0,88892.0,0.01128]
[1767187263057,0.06749162,88900.0,88892.0,0.01128]
[1767187263429,0.06749191,88901.0,88892.0,0.01128]
[1767187263832,0.01124859,88900.0,88892.0,0.01128]
[1767187264917,0.06749175,88900.0,88892.0,0.01128]
[1767187265114,0.01124859,88900.0,88892.0,0.01128]
[1767187265301,0.06749168,88900.0,88892.0,0.01128]
[1767187265521,0.01124872,88899.0,88892.0,0.01128]
[1767187266366,0.01124859,88900.0,88892.0,0.01128]
[1767187266792,0.01124872,88899.0,88892.0,0.01128]
[1767187267594,0.01124846,88901.0,88892.0,0.01128]
[1767187267891,0.01124859,88900.0,88892.0,0.01128]
[1767187268096,0.06749089,88901.0,88892.0,0.01128]
[1767187268297,0.06749006,88902.0,88892.0,0.01128]
[1767187268667,0.01124846,88901.0,88892.0,0.01128]
[1767187268906,0.01124859,88900.0,88892.0,0.01128]
[1767187269126,0.0674916,88900.0,88892.0,0.01128]
[1767187269307,0.01124872,88899.0,88892.0,0.01128]
[1767187269508,0.01124859,88900.0,88892.0,0.01128]
[1767187269864,0.01124872,88899.0,88892.0,0.01128]
[1767187270063,0.01124859,88900.0,88892.0,0.01128]
[1767187270268,0.06749171,88900.0,88892.0,0.01128]
[1767187270464,0.01124872,88899.0,88892.0,0.01128]
[1767187271087,0.06749243,88899.0,88892.0,0.01128]
[1767187271586,0.06749171,88900.0,88892.0,0.01128]
[1767187271781,0.0562432,88900.0,88892.0,0.01128]
[1767187272409,0.05624383,88899.0,88892.0,0.01128]
[1767187272787,0.01124884,88898.0,88892.0,0.01128]
[1767187273613,0.06749255,88899.0,88892.0,0.01128]
[1767187274565,0.06631138,88899.0,88892.0,0.01128]
[1767187275176,0.01124859,88900.0,88892.0,0.01128]
[1767187275379,0.06749157,88900.0,88892.0,0.01128]
[1767187275577,0.01124872,88899.0,88892.0,0.01128]
[1767187275980,0.06749174,88900.0,88892.0,0.01128]
[1767187276179,0.01124872,88899.0,88892.0,0.01128]
[1767187276684,0.06749174,88900.0,88892.0,0.01128]
[1767187277999,0.01124872,88899.0,88892.0,0.01128]
[1767187279258,0.06749357,88899.0,88892.0,0.01128]
[1767187279457,0.01124872,88899.0,88892.0,0.01128]
[1767187279658,0.06749161,88900.0,88892.0,0.01128]
[1767187279864,0.01124859,88900.0,88892.0,0.01128]
[1767187280178,0.01124872,88899.0,88892.0,0.01128]
[1767187280381,0.0674917,88900.0,88892.0,0.01128]
[1767187280582,0.01124859,88900.0,88892.0,0.01128]
[1767187281344,0.01124872,88899.0,88892.0,0.01128]
[1767187281550,0.01120525,88899.0,88892.0,0.01128]
[1767187281901,0.06744892,88899.0,88892.0,0.01128]
[1767187282592,0.06740758,88899.0,88892.0,0.01128]
[1767187283113,0.01124859,88900.0,88892.0,0.01128]
[1767187283512,0.01124884,88898.0,88892.0,0.01128]
[1767187283676,0.06749242,88899.0,88892.0,0.01128]
[1767187284077,0.01124872,88899.0,88892.0,0.01128]
[1767187284623,0.06749173,88900.0,88892.0,0.01128]
[1767187284982,0.01124872,88899.0,88892.0,0.01128]
[1767187285181,0.06749264,88899.0,88892.0,0.01128]
[1767187285397,0.01124884,88898.0,88892.0,0.01128]
[1767187285818,0.06749266,88900.0,88892.0,0.01128]
[1767187286019,0.01124872,88899.0,88892.0,0.01128]
[1767187286243,0.01124859,88900.0,88892.0,0.01128]
[1767187286917,0.01124872,88899.0,88892.0,0.01128]
[1767187287123,0.01124884,88898.0,88892.0,0.01128]
[1767187288006,0.06749081,88901.0,88892.0,0.01128]
[1767187289325,0.01124846,88901.0,88892.0,0.01128]
[1767187289530,0.01124859,88900.0,88892.0,0.01128]
[1767187290429,0.067491,88901.0,88892.0,0.01128]
[1767187292281,0.01124859,88900.0,88892.0,0.01128]
[1767187294375,0.06749123,88901.0,88892.0,0.01128]
[1767187295441,0.01124859,88900.0,88892.0,0.01128]
[1767187296183,0.06749109,88901.0,88892.0,0.01128]
[1767187296981,0.01124859,88900.0,88892.0,0.01128]
[1767187297389,0.06749109,88901.0,88892.0,0.01128]
[1767187297749,0.01124859,88900.0,88892.0,0.01128]
[1767187297984,0.06749109,88901.0,88892.0,0.01128]
[1767187298710,0.01124846,88901.0,88892.0,0.01128]
[1767187299775,0.22494849,88910.0,88892.0,0.01128]
[1767187299776,0.01124745,88909.0,88901.0,0.000549]
[1767187299947,0.4727,88909.0,88892.0,0.49995]
[1767187300146,0.06748552,88908.0,88892.0,0.49995]
[1767187300347,0.01124758,88908.0,88892.0,0.49995]
[1767187300847,0.0112477,88907.0,88892.0,0.49995]
[1767187301267,0.00035377,88911.0,88907.0,0.000549]
[1767187301497,0.00035377,88911.0,88899.0,0.48867]
[1767187301498,0.00035377,88911.0,88903.0,0.01128]
[1767187302552,7.7e-07,88911.0,88903.0,0.01128]
[1767187304399,0.00063729,88915.0,88903.0,0.07209764]
[1767187304563,0.00071283,88915.0,88903.0,0.07209764]
[1767187305879,0.01195952,88915.0,88903.0,0.07209764]
[1767187306221,0.01124682,88914.0,88903.0,0.07209764]
[1767187306524,0.01195952,88915.0,88903.0,0.07209764]
[1767187307228,0.00071283,88915.0,88903.0,0.07209764]
[1767187307427,0.00071283,88915.0,88904.0,0.06081764]
[1767187307588,0.01195952,88915.0,88904.0,0.06081764]
[1767187307791,0.06819335,88915.0,88904.0,0.06081764]
[1767187307991,0.4727,88907.0,88904.0,4.64e-06]
[1767187308211,0.4727,88907.0,88903.0,0.01128]
[1767187308928,0.48394707,88912.0,88903.0,0.01128]
[1767187309369,0.26015605,88914.0,88903.0,0.01128]
[1767187309370,0.47668682,88914.0,88903.0,0.01128]
[1767187309578,0.46544,88914.0,88903.0,0.01128]
[1767187309880,0.01124694,88913.0,88903.0,0.01128]
[1767187310088,0.47668682,88914.0,88903.0,0.01128]
[1767187310520,0.01124694,88913.0,88903.0,0.01128]
[1767187311306,0.53292155,88914.0,88903.0,0.01128]
[1767187311507,0.01124694,88913.0,88903.0,0.01128]
[1767187312909,0.01124707,88912.0,88903.0,0.01128]
[1767187313311,0.06748178,88913.0,88903.0,0.01128]
[1767187313724,0.53292104,88914.0,88903.0,0.01128]
[1767187313891,0.01124694,88913.0,88903.0,0.01128]
[1767187314389,0.53292094,88914.0,88903.0,0.01128]
[1767187314590,0.01124694,88913.0,88903.0,0.01128]
[1767187314812,0.01124707,88912.0,88903.0,0.01128]
[1767187314974,0.01124694,88913.0,88903.0,0.01128]
[1767187316629,0.53292094,88914.0,88903.0,0.01128]
[1767187316871,0.01124694,88913.0,88903.0,0.01128]
[1767187320044,0.0112472,88911.0,88903.0,0.01128]
[1767187320265,0.01124732,88910.0,88903.0,0.01128]
[1767187320612,0.46544,88908.0,88903.0,0.01128]
[1767187321627,0.06748409,88910.0,88903.0,0.01128]
[1767187322038,0.01124732,88910.0,88903.0,0.01128]
[1767187322573,0.0112472,88911.0,88903.0,0.01128]
[1767187322738,0.01124707,88912.0,88903.0,0.01128]
[1767187322893,0.0112472,88911.0,88903.0,0.01128]
[1767187323097,0.0674825,88912.0,88903.0,0.01128]
[1767187323098,0.01124707,88912.0,88903.0,0.01128]
[1767187323352,0.06748296,88912.0,88903.0,0.01128]
[1767187324813,0.0112472,88911.0,88903.0,0.01128]
[1767187325026,0.01124707,88912.0,88903.0,0.01128]
[1767187325606,0.06748292,88913.0,88903.0,0.01128]
[1767187325805,0.00071283,88915.0,88903.0,0.50456]
[1767187326159,0.00071283,88915.0,88913.0,0.000549]
[1767187326497,0.00071283,88915.0,88905.0,0.2601422]
[1767187327394,0.00071283,88915.0,88903.0,0.50456]
[1767187328182,0.01195952,88915.0,88903.0,0.50456]
[1767187328385,0.00071283,88915.0,88903.0,0.50456]
[1767187329812,0.01195952,88915.0,88903.0,0.01128]
[1767187329989,0.01124694,88913.0,88903.0,0.01128]
[1767187330191,0.01195952,88915.0,88903.0,0.01128]
[1767187330392,0.47739952,88915.0,88903.0,0.01128]
[1767187330587,0.01124682,88914.0,88903.0,0.01128]
[1767187330832,0.46544,88914.0,88903.0,0.01128]
[1767187331294,0.06748438,88910.0,88901.0,0.01128]
[1767187331498,0.01124732,88910.0,88901.0,0.01128]
[1767187331698,0.53292369,88911.0,88901.0,0.01128]
[1767187332095,0.53292324,88911.0,88901.0,0.01128]
[1767187332302,0.01124732,88910.0,88901.0,0.01128]
[1767187332925,0.06748407,88910.0,88901.0,0.01128]
[1767187333142,0.01124732,88910.0,88901.0,0.01128]
[1767187333340,0.4766872,88911.0,88901.0,0.01128]
[1767187333499,0.01124745,88909.0,88901.0,0.01128]
[1767187333706,0.53292373,88911.0,88901.0,0.01128]
[1767187333907,0.01124732,88910.0,88901.0,0.01128]
[1767187334654,0.46544,88911.0,88901.0,0.01128]
[1767187335153,0.01195952,88915.0,88901.0,0.01128]
[1767187335399,0.01195952,88915.0,88905.0,0.2601422]
[1767187335562,0.01124682,88914.0,88905.0,0.2601422]
[1767187335983,0.01195952,88915.0,88905.0,0.2601422]
[1767187336186,0.01124682,88914.0,88905.0,0.2601422]
[1767187336416,0.01124682,88914.0,88904.0,0.2601422]
[1767187336595,0.06748171,88913.0,88904.0,0.2601422]
[1767187336769,0.01124694,88913.0,88904.0,0.2601422]
[1767187338017,0.01124707,88912.0,88901.0,0.01128]
[1767187338214,0.01124732,88910.0,88903.0,0.2601422]
[1767187338435,0.06748329,88911.0,88901.0,0.01128]
[1767187339424,0.01124732,88910.0,88901.0,0.01128]
[1767187339617,0.06748339,88911.0,88901.0,0.01128]
[1767187340474,0.01124732,88910.0,88901.0,0.01128]
[1767187340630,0.06748431,88910.0,88901.0,0.01128]
[1767187341091,0.01124758,88908.0,88901.0,0.01128]
[1767187341249,0.06748674,88908.0,88901.0,0.01128]
[1767187341452,0.06748488,88909.0,88901.0,0.01128]
[1767187342907,0.01124758,88908.0,88901.0,0.01128]
[1767187343573,0.06748488,88909.0,88901.0,0.01128]
[1767187343777,0.01124758,88908.0,88901.0,0.01128]
[1767187344014,0.01124732,88910.0,88901.0,0.01128]
[1767187344377,0.01124758,88908.0,88901.0,0.01128]
[1767187344801,0.06748507,88909.0,88901.0,0.01128]
[1767187344998,0.01124745,88909.0,88901.0,0.01128]
[1767187345182,0.06748418,88910.0,88901.0,0.01128]
[1767187346463,0.01124732,88910.0,88901.0,0.01128]
[1767187346668,0.06748435,88911.0,88901.0,0.01128]
[1767187346870,0.01124732,88910.0,88901.0,0.01128]
[1767187348734,0.01124745,88909.0,88901.0,0.01128]
[1767187349028,0.05623601,88911.0,88909.0,0.000549]
[1767187349231,0.05623583,88912.0,88909.0,0.000549]
[1767187349444,0.05623606,88911.0,88909.0,0.000549]
[1767187349648,0.06748326,88911.0,88902.0,0.2601422]
[1767187350062,0.06748326,88911.0,88902.0,0.27935611]
[1767187350264,0.06748326,88911.0,88902.0,0.2601422]
[1767187350470,0.0112472,88911.0,88902.0,0.2601422]
[1767187351870,0.06748324,88911.0,88902.0,0.2601422]
[1767187352588,0.06748324,88911.0,88901.0,0.01128]
[1767187352589,0.05623837,88908.0,88901.0,0.01128]
[1767187352722,0.0112472,88911.0,88901.0,0.01128]
[1767187352922,0.01124732,88910.0,88901.0,0.01128]
[1767187353130,0.06748397,88910.0,88901.0,0.01128]
[1767187353547,0.01124745,88909.0,88901.0,0.01128]
[1767187353810,0.01124758,88908.0,88901.0,0.01128]
[1767187353942,0.0112477,88907.0,88901.0,0.01128]
[1767187354510,0.05623744,88909.0,88901.0,0.01128]
[1767187354679,0.01124758,88908.0,88901.0,0.01128]
[1767187354864,0.06748397,88910.0,88901.0,0.01128]
[1767187355399,0.0674834,88911.0,88901.0,0.01128]
[1767187355597,0.06748397,88910.0,88901.0,0.01128]
[1767187356007,0.01124745,88909.0,88901.0,0.01128]
[1767187356707,0.06748397,88910.0,88901.0,0.01128]
[1767187356871,0.01124758,88908.0,88901.0,0.01128]
[1767187357094,0.06748572,88908.0,88901.0,0.01128]
[1767187357470,0.0112477,88907.0,88901.0,0.01128]